fUST/lending_fUST_20250221
["ID","MTS","AMOUNT","RATE_DAILY","PERIOD"]
[353862491,1740099059110,-591.42,0.00015013,2]
[353862492,1740099059119,-500.0,0.00015013,2]
[353862493,1740099059129,-500.0,0.00015013,2]
[353862494,1740099059139,-150.2,0.00015013,2]
[353862495,1740099059149,-500.0,0.00015013,2]
[353862496,1740099059159,-721.55,0.00015013,2]
[353862497,1740099059168,-834.0,0.00015013,2]
[353862498,1740099059178,-660.44,0.00015013,2]
[353862499,1740099059188,-947.07,0.00015013,2]
[353862500,1740099059198,-609.15,0.00015013,2]
[353862501,1740099059207,-500.0,0.00015013,2]
[353862502,1740099059217,-1114.79,0.00015013,2]
[353862503,1740099059227,-1228.62,0.00015013,2]
[353862504,1740099059238,-500.0,0.00015013,2]
[353862505,1740099059249,-621.37,0.00015013,2]
[353862506,1740099059258,-758.38,0.00015013,2]
[353862507,1740099059267,-613.19,0.00015013,2]
[353862508,1740099059278,-632.61,0.00015013,2]
[353862509,1740099059287,-572.23,0.00015013,2]
[353862510,1740099059297,-500.0,0.00015013,2]
[353862511,1740099059306,-1175.39,0.00015013,2]
[353862512,1740099059316,-865.49,0.00015013,2]
[353862513,1740099059326,-151.0,0.00015013,2]
[353862514,1740099059336,-774.91,0.00015013,2]
[353862515,1740099059348,-564.81,0.00015013,2]
[353862516,1740099059357,-500.0,0.00015013,2]
[353862517,1740099059367,-500.0,0.00015013,2]
[353862518,1740099059377,-500.0,0.00015013,2]
[353862519,1740099059387,-2172.75,0.00015013,2]
[353862520,1740099059396,-589.91,0.00015013,2]
[353862521,1740099059406,-528.95,0.00015013,2]
[353862522,1740099059416,-151.0,0.00015013,2]
[353862523,1740099059426,-1090.79,0.00015013,2]
[353862524,1740099059435,-2970.58,0.00015013,2]
[353862525,1740099059444,-7420.64,0.00015013,2]
[353862526,1740099059455,-36587.69,0.00015013,2]
[353862527,1740099059464,-1427.22,0.00015013,2]
[353862528,1740099059474,-1803.93,0.00015013,2]
[353862529,1740099059484,-13094.89,0.00015013,2]
[353862530,1740099059494,-1128.54,0.00015013,2]
[353862531,1740099059504,-3325.92,0.00015013,2]
[353862532,1740099059514,-1290.8,0.00015013,2]
[353862533,1740099059524,-500.0,0.00015013,2]
[353862534,1740099059534,-1123.55,0.00015013,2]
[353862535,1740099059544,-727.74,0.00015013,2]
[353862536,1740099059554,-2394.48,0.00015013,2]
[353862537,1740099059563,-883.8,0.00015013,2]
[353862538,1740099059573,-1457.41,0.00015013,2]
[353862539,1740099059583,-3211.81,0.00015013,2]
[353862540,1740099059592,-500.0,0.00015013,2]
[353862541,1740099059603,-500.0,0.00015013,2]
[353862542,1740099059612,-150.2,0.00015013,2]
[353862543,1740099059621,-6337.6,0.00015013,2]
[353862544,1740099059630,-150.2,0.00015013,2]
[353862545,1740099059640,-150.2,0.00015013,2]
[353862546,1740099059649,-531.95,0.00015013,2]
[353862547,1740099059659,-150.2,0.00015013,2]
[353862548,1740099059668,-1198.37,0.00015013,2]
[353862549,1740099059678,-2201.57,0.00015013,2]
[353862550,1740099059687,-3441.83,0.00015013,2]
[353862551,1740099059697,-682.12,0.00015013,2]
[353862552,1740099059707,-584.09,0.00015013,2]
[353862553,1740099059716,-855.35,0.00015013,2]
[353862554,1740099059725,-1912.84,0.00015013,2]
[353862555,1740099059735,-657.23,0.00015013,2]
[353862556,1740099059745,-537.23,0.00015013,2]
[353862557,1740099059755,-1282.81,0.00015013,2]
[353862558,1740099059765,-500.0,0.00015013,2]
[353862559,1740099059775,-2073.86,0.00015013,2]
[353862560,1740099059784,-2400.28,0.00015013,2]
[353862561,1740099059794,-151.0,0.00015013,2]
[353862562,1740099059804,-1084.12,0.00015013,2]
[353862563,1740099059813,-177.859136,0.00015013,2]
[353862564,1740099059823,-2528.55,0.00015013,2]
[353862565,1740099059833,-2085.88,0.00015013,2]
[353862566,1740099059843,-500.0,0.00015013,2]
[353862567,1740099059853,-5873.51,0.00015013,2]
[353862568,1740099059863,-550.36,0.00015013,2]
[353862569,1740099059873,-151.0,0.00015013,2]
[353862570,1740099059883,-500.0,0.00015013,2]
[353862571,1740099059893,-500.0,0.00015013,2]
[353862572,1740099059903,-224.336594,0.00015013,2]
[353862573,1740099059913,-224.336594,0.00015013,2]
[353862574,1740099059923,-755.6,0.00015013,2]
[353862575,1740099059934,-446.15668326,0.00015013,2]
[353862576,1740099059944,-1871.42,0.00015013,2]
[353862577,1740099059954,-500.0,0.00015013,2]
[353862578,1740099059965,-500.0,0.00015013,2]
[353862579,1740099059975,-150.2,0.00015013,2]
[353862580,1740099059985,-150.2,0.00015013,2]
[353862581,1740099059995,-150.2,0.00015013,2]
[353862582,1740099060005,-18104.48,0.00015013,2]
[353862583,1740099060016,-846.0,0.00015013,2]
[353862584,1740099060026,-873.49,0.00015013,2]
[353862585,1740099060039,-528.42,0.00015095,2]
[353862586,1740099060050,-591.42,0.00015095,2]
[353862587,1740099060060,-500.0,0.00015095,2]
[353862588,1740099060071,-192.8,0.00015095,2]
[353862589,1740099060081,-500.0,0.00015095,2]
[353862590,1740099060091,-192.8,0.00015095,2]
[353862591,1740099060103,-429.0090621,0.00015095,2]
[353862592,1740099060113,-721.55,0.00015095,2]
[353862593,1740099060124,-834.0,0.00015095,2]
[353862594,1740099060134,-660.44,0.00015095,2]
[353862595,1740099060144,-947.07,0.00015095,2]
[353862596,1740099060154,-609.15,0.00015095,2]
[353862597,1740099060165,-513.89354345,0.00015095,2]
[353862598,1740099060175,-1114.79,0.00015095,2]
[353862599,1740099060185,-1228.62,0.00015095,2]
[353862600,1740099060195,-500.0,0.00015095,2]
[353862601,1740099060205,-621.37,0.00015095,2]
[353862602,1740099060215,-758.38,0.00015095,2]
[353862603,1740099060226,-613.19,0.00015095,2]
[353862604,1740099060236,-632.61,0.00015095,2]
[353862605,1740099060249,-572.23,0.00015095,2]
[353862606,1740099060259,-500.0,0.00015095,2]
[353862607,1740099060271,-1175.39,0.00015095,2]
[353862608,1740099060281,-865.49,0.00015095,2]
[353862609,1740099060291,-774.91,0.00015095,2]
[353862610,1740099060301,-564.81,0.00015095,2]
[353862611,1740099060311,-500.0,0.00015095,2]
[353862612,1740099060321,-500.0,0.00015095,2]
[353862613,1740099060332,-500.0,0.00015095,2]
[353862614,1740099060343,-2172.75,0.00015095,2]
[353862615,1740099060354,-589.91,0.00015095,2]
[353862616,1740099060364,-528.95,0.00015095,2]
[353862617,1740099060374,-1090.79,0.00015095,2]
[353862618,1740099060384,-2970.58,0.00015095,2]
[353862619,1740099060394,-7420.64,0.00015095,2]
[353862620,1740099060405,-36587.69,0.00015095,2]
[353862621,1740099060415,-1427.22,0.00015095,2]
[353862622,1740099060426,-1803.93,0.00015095,2]
[353862623,1740099060435,-13094.89,0.00015095,2]
[353862624,1740099060446,-1128.54,0.00015095,2]
[353862625,1740099060455,-3325.92,0.00015095,2]
[353862626,1740099060466,-1290.8,0.00015095,2]
[353862627,1740099060476,-500.0,0.00015095,2]
[353862628,1740099060486,-1123.55,0.00015095,2]
[353862629,1740099060496,-727.74,0.00015095,2]
[353862630,1740099060506,-2394.48,0.00015095,2]
[353862631,1740099060516,-883.8,0.00015095,2]
[353862632,1740099060526,-1457.41,0.00015095,2]
[353862633,1740099060537,-3211.81,0.00015095,2]
[353862634,1740099060547,-6337.6,0.00015095,2]
[353862635,1740099060558,-531.95,0.00015095,2]
[353862636,1740099060568,-1198.37,0.00015095,2]
[353862637,1740099060578,-2201.57,0.00015095,2]
[353862638,1740099060588,-3441.83,0.00015095,2]
[353862639,1740099060600,-682.12,0.00015095,2]
[353862640,1740099060610,-584.09,0.00015095,2]
[353862641,1740099060620,-855.35,0.00015095,2]
[353862642,1740099060630,-1912.84,0.00015095,2]
[353862643,1740099060640,-657.23,0.00015095,2]
[353862644,1740099060650,-537.23,0.00015095,2]
[353862645,1740099060659,-1282.81,0.00015095,2]
[353862646,1740099060669,-500.0,0.00015095,2]
[353862647,1740099060678,-2073.86,0.00015095,2]
[353862648,1740099060687,-2400.28,0.00015095,2]
[353862649,1740099060697,-1084.12,0.00015095,2]
[353862650,1740099060707,-2528.55,0.00015095,2]
[353862651,1740099060717,-2085.88,0.00015095,2]
[353862652,1740099060727,-500.0,0.00015095,2]
[353862653,1740099060738,-5873.51,0.00015095,2]
[353862654,1740099060747,-550.36,0.00015095,2]
[353862655,1740099060758,-500.0,0.00015095,2]
[353862656,1740099060768,-500.0,0.00015095,2]
[353862657,1740099060778,-755.6,0.00015095,2]
[353862658,1740099060788,-1871.42,0.00015095,2]
[353862659,1740099060798,-18104.48,0.00015095,2]
[353862660,1740099060809,-873.49,0.00015095,2]
[353862661,1740099060819,-4530.5,0.000151,5]
[353862662,1740099060828,-161.081112,0.00015104,2]
[353862663,1740099060839,-528.42,0.00015178,2]
[353862664,1740099060851,-591.42,0.00015178,2]
[353862665,1740099060860,-630.90281593,0.00015178,2]
[353862666,1740099060870,-500.0,0.00015178,2]
[353862667,1740099060880,-721.55,0.00015178,2]
[353862668,1740099060891,-834.0,0.00015178,2]
[353862669,1740099060901,-660.44,0.00015178,2]
[353862670,1740099060911,-947.07,0.00015178,2]
[353862671,1740099060922,-609.15,0.00015178,2]
[353862672,1740099060931,-1114.79,0.00015178,2]
[353862673,1740099060941,-1228.62,0.00015178,2]
[353862674,1740099060951,-507.63413278,0.00015178,2]
[353862675,1740099060961,-621.37,0.00015178,2]
[353862676,1740099060970,-758.38,0.00015178,2]
[353862677,1740099060979,-613.19,0.00015178,2]
[353862678,1740099060989,-632.61,0.00015178,2]
[353862679,1740099060998,-572.23,0.00015178,2]
[353862680,1740099061008,-500.0,0.00015178,2]
[353862681,1740099061018,-1175.39,0.00015178,2]
[353862682,1740099061027,-865.49,0.00015178,2]
[353862683,1740099061037,-774.91,0.00015178,2]
[353862684,1740099061047,-564.81,0.00015178,2]
[353862685,1740099061056,-500.0,0.00015178,2]
[353862686,1740099061066,-363.7635291,0.00015178,2]
[353862687,1740099061076,-500.0,0.00015178,2]
[353862688,1740099061086,-2172.75,0.00015178,2]
[353862689,1740099061097,-589.91,0.00015178,2]
[353862690,1740099061108,-528.95,0.00015178,2]
[353862691,1740099061117,-1090.79,0.00015178,2]
[353862692,1740099061127,-2970.58,0.00015178,2]
[353862693,1740099061138,-7420.64,0.00015178,2]
[353862694,1740099061148,-36587.69,0.00015178,2]
[353862695,1740099061157,-1427.22,0.00015178,2]
[353862696,1740099061167,-1803.93,0.00015178,2]
[353862697,1740099061177,-13094.89,0.00015178,2]
[353862698,1740099061186,-1128.54,0.00015178,2]
[353862699,1740099061196,-3325.92,0.00015178,2]
[353862700,1740099061206,-1290.8,0.00015178,2]
[353862701,1740099061215,-500.0,0.00015178,2]
[353862702,1740099061225,-1123.55,0.00015178,2]
[353862703,1740099061236,-727.74,0.00015178,2]
[353862704,1740099061247,-2394.48,0.00015178,2]
[353862705,1740099061257,-883.8,0.00015178,2]
[353862706,1740099061267,-1457.41,0.00015178,2]
[353862707,1740099061277,-3211.81,0.00015178,2]
[353862708,1740099061287,-6337.6,0.00015178,2]
[353862709,1740099061296,-531.95,0.00015178,2]
[353862710,1740099061305,-1198.37,0.00015178,2]
[353862711,1740099061316,-2201.57,0.00015178,2]
[353862712,1740099061326,-3441.83,0.00015178,2]
[353862713,1740099061336,-682.12,0.00015178,2]
[353862714,1740099061346,-584.09,0.00015178,2]
[353862715,1740099061356,-855.35,0.00015178,2]
[353862716,1740099061366,-1912.84,0.00015178,2]
[353862717,1740099061375,-657.23,0.00015178,2]
[353862718,1740099061385,-537.23,0.00015178,2]
[353862719,1740099061394,-1282.81,0.00015178,2]
[353862720,1740099061404,-500.0,0.00015178,2]
[353862721,1740099061414,-2073.86,0.00015178,2]
[353862722,1740099061553,-2400.28,0.00015178,2]
[353862723,1740099061562,-1084.12,0.00015178,2]
[353862724,1740099061572,-2528.55,0.00015178,2]
[353862725,1740099061581,-2085.88,0.00015178,2]
[353862726,1740099061591,-500.0,0.00015178,2]
[353862727,1740099061600,-5873.51,0.00015178,2]
[353862728,1740099061610,-550.36,0.00015178,2]
[353862729,1740099061619,-258.7253128,0.00015178,2]
[353862730,1740099061628,-573.22711068,0.00015178,2]
[353862731,1740099061638,-755.6,0.00015178,2]
[353862732,1740099061648,-1871.42,0.00015178,2]
[353862733,1740099061657,-1489.64969518,0.00015178,2]
[353862734,1740099061674,-6635.00792215,0.00015178,2]
[353862735,1740099061685,-381.92818453,0.00015178,2]
[353862736,1740099526620,2130.0,0.00018112,120]
[353862741,1740099928076,290.391928,9.041e-05,2]
[353862778,1740100232099,-175.6436233,0.00013598,2]
[353862779,1740100232109,-300.0,0.00013697,2]
[353862780,1740100232119,-500.0,0.00013698,2]
[353862781,1740100232128,-500.0,0.00013698,2]
[353862782,1740100232138,-500.0,0.00013698,2]
[353862783,1740100232148,-500.0,0.00013698,2]
[353862784,1740100232159,-500.0,0.00013698,2]
[353862787,1740100232170,-498.35691516,0.00013698,2]
[353862863,1740100237939,-1.64308484,0.00013698,2]
[353862864,1740100237949,-500.0,0.00013698,2]
[353862865,1740100237961,-500.0,0.00013698,2]
[353862866,1740100237971,-500.0,0.00013698,2]
[353862867,1740100237980,-500.0,0.00013698,2]
[353862868,1740100237990,-500.0,0.00013698,2]
[353862869,1740100237999,-500.0,0.00013698,2]
[353862870,1740100238009,-500.0,0.00013698,2]
[353862871,1740100238018,-500.0,0.00013698,2]
[353862872,1740100238027,-710.3,0.00013698,2]
[353862873,1740100238037,-500.0,0.00013698,2]
[353862874,1740100238047,-541.16,0.00013698,2]
[353862875,1740100238056,-921.47,0.00013698,2]
[353862876,1740100238066,-500.0,0.00013698,2]
[353862877,1740100238076,-500.0,0.00013698,2]
[353862878,1740100238087,-836.09,0.00013698,2]
[353862879,1740100238097,-500.0,0.00013698,2]
[353862880,1740100238106,-500.0,0.00013698,2]
[353862881,1740100238116,-500.0,0.00013698,2]
[353862882,1740100238126,-500.0,0.00013698,2]
[353862883,1740100238135,-500.0,0.00013698,2]
[353862884,1740100238145,-500.0,0.00013698,2]
[353862885,1740100238155,-500.36388675,0.00013698,2]
[353862886,1740100238164,-568.78,0.00013698,2]
[353862887,1740100238173,-631.09,0.00013698,2]
[353862888,1740100238183,-500.0,0.00013698,2]
[353862889,1740100238192,-500.0,0.00013698,2]
[353862890,1740100238201,-500.0,0.00013698,2]
[353862891,1740100238210,-500.0,0.00013698,2]
[353862892,1740100238219,-503.71418303,0.00013698,2]
[353862893,1740100238229,-881.54,0.00013698,2]
[353862894,1740100238237,-500.0,0.00013698,2]
[353862895,1740100238247,-503.54992364,0.00013698,2]
[353862896,1740100238256,-500.0,0.00013698,2]
[353862897,1740100238265,-316.09434136,0.00013698,2]
[353862898,1740100238274,-500.0,0.00013698,2]
[353862899,1740100238283,-500.0,0.00013698,2]
[353862900,1740100238292,-500.0,0.00013698,2]
[353862901,1740100238302,-500.0,0.00013698,2]
[353862902,1740100238312,-500.0,0.00013698,2]
[353862903,1740100238323,-500.0,0.00013698,2]
[353862904,1740100238332,-649.12,0.00013698,2]
[353862905,1740100238342,-500.58466703,0.00013698,2]
[353862906,1740100238351,-500.0,0.00013698,2]
[353862907,1740100238360,-500.0,0.00013698,2]
[353862908,1740100238370,-523.25761261,0.00013698,2]
[353862909,1740100238379,-581.18,0.00013698,2]
[353862910,1740100238389,-500.0,0.00013698,2]
[353862911,1740100238399,-500.0,0.00013698,2]
[353862912,1740100238408,-166.97301514,0.00013698,2]
[353862913,1740100238418,-500.0,0.00013698,2]
[353862914,1740100238427,-500.0,0.00013698,2]
[353862915,1740100238436,-396.08892718,0.00013698,2]
[353862916,1740100238445,-500.0,0.00013698,2]
[353862917,1740100238455,-500.0,0.00013698,2]
[353862918,1740100238465,-500.0,0.00013698,2]
[353862919,1740100238474,-500.0,0.00013698,2]
[353862920,1740100238484,-500.0,0.00013698,2]
[353862921,1740100238494,-500.0,0.00013698,2]
[353862922,1740100238503,-576.13,0.00013698,2]
[353862923,1740100238512,-210.36291005,0.00013698,2]
[353862924,1740100238522,-500.0,0.00013698,2]
[353862925,1740100238532,-940.45,0.00013698,2]
[353862926,1740100238541,-27440.76,0.00013698,2]
[353862927,1740100238550,-500.0,0.00013698,2]
[353862928,1740100238559,-500.0,0.00013698,2]
[353862929,1740100238569,-1428.11,0.00013698,2]
[353862930,1740100238579,-948.71,0.00013698,2]
[353862931,1740100238588,-1895.63,0.00013698,2]
[353862932,1740100238597,-500.0,0.00013698,2]
[353862933,1740100238607,-1075.67,0.00013698,2]
[353862934,1740100238616,-1153.78,0.00013698,2]
[353862935,1740100238626,-2542.69,0.00013698,2]
[353862936,1740100238635,-5017.26,0.00013698,2]
[353862937,1740100238644,-699.68,0.00013698,2]
[353862938,1740100238654,-500.0,0.00013698,2]
[353862939,1740100238663,-500.0,0.00013698,2]
[353862940,1740100238673,-500.0,0.00013698,2]
[353862941,1740100238682,-500.0,0.00013698,2]
[353862942,1740100238692,-500.0,0.00013698,2]
[353862943,1740100238702,-500.0,0.00013698,2]
[353862944,1740100238711,-500.0,0.00013698,2]
[353862945,1740100238720,-500.0,0.00013698,2]
[353862946,1740100238732,-500.0,0.00013698,2]
[353862947,1740100238742,-2724.78,0.00013698,2]
[353862948,1740100238752,-500.0,0.00013698,2]
[353862949,1740100238891,-500.0,0.00013698,2]
[353862950,1740100238902,-500.0,0.00013698,2]
[353862951,1740100238912,-1514.33,0.00013698,2]
[353862952,1740100238922,-500.0,0.00013698,2]
[353862953,1740100238931,-500.0,0.00013698,2]
[353862954,1740100238941,-500.0,0.00013698,2]
[353862955,1740100238952,-1015.56,0.00013698,2]
[353862956,1740100238962,-3063.86,0.00013698,2]
[353862957,1740100238972,-500.0,0.00013698,2]
[353862958,1740100238982,-500.0,0.00013698,2]
[353862959,1740100238991,-500.0,0.00013698,2]
[353862960,1740100239002,-677.15,0.00013698,2]
[353862961,1740100239011,-858.26,0.00013698,2]
[353862962,1740100239021,-540.01,0.00013698,2]
[353862963,1740100239030,-288.04560858,0.00013698,2]
[353862964,1740100239040,-1641.8,0.00013698,2]
[353862965,1740100239050,-297.13543309,0.00013698,2]
[353862966,1740100239059,-378.3472983,0.00013698,2]
[353862967,1740100239069,-1651.32,0.00013698,2]
[353862968,1740100239078,-500.0,0.00013698,2]
[353862969,1740100239088,-1900.23,0.00013698,2]
[353862970,1740100239097,-520.31,0.00013698,2]
[353862971,1740100239107,-2001.77,0.00013698,2]
[353862972,1740100239116,-500.0,0.00013698,2]
[353862973,1740100239126,-500.0,0.00013698,2]
[353862974,1740100239135,-14732.63,0.00013698,2]
[353862975,1740100239145,-513.0595766,0.00013698,2]
[353862976,1740100239154,-500.0,0.00013698,2]
[353862977,1740100239163,-500.0,0.00013698,2]
[353862978,1740100239173,-500.0,0.00013698,2]
[353862979,1740100239182,-500.0,0.00013698,2]
[353862980,1740100239192,-500.0,0.00013698,2]
[353862981,1740100239202,-598.18,0.00013698,2]
[353862982,1740100239212,-1936.09,0.00013698,2]
[353862983,1740100239222,-500.0,0.00013698,2]
[353862984,1740100239231,-500.0,0.00013698,2]
[353862985,1740100239241,-500.0,0.00013698,2]
[353862986,1740100239250,-500.0,0.00013698,2]
[353862987,1740100239260,-500.0,0.00013698,2]
[353862988,1740100239271,-500.0,0.00013698,2]
[353862989,1740100239280,-500.0,0.00013698,2]
[353862990,1740100239290,-500.0,0.00013698,2]
[353862991,1740100239299,-309.86,0.00013698,2]
[353862992,1740100239309,-4649.86,0.00013698,2]
[353862993,1740100239319,-500.0,0.00013698,2]
[353862994,1740100239329,-1481.54,0.00013698,2]
[353862995,1740100239339,-500.0,0.00013698,2]
[353862996,1740100239348,-500.0,0.00013698,2]
[353862997,1740100239357,-500.0,0.00013698,2]
[353862998,1740100239367,-500.0,0.00013698,2]
[353862999,1740100239376,-209.709451,0.00013698,2]
[353863000,1740100239387,-727.91,0.00013698,2]
[353863001,1740100239396,-500.0,0.00013698,2]
[353863002,1740100239406,-500.0,0.00013698,2]
[353863003,1740100239416,-500.0,0.00013698,2]
[353863004,1740100239425,-500.0,0.00013698,2]
[353863005,1740100239435,-500.0,0.00013698,2]
[353863006,1740100239444,-500.0,0.00013698,2]
[353863007,1740100239455,-500.0,0.00013698,2]
[353863008,1740100239465,-500.29390617,0.00013698,2]
[353863009,1740100239475,-501.2785299,0.00013698,2]
[353863011,1740100239484,-500.0,0.00013698,2]
[353863013,1740100239494,-1629.56,0.00013698,2]
[353863015,1740100239503,-500.0,0.00013698,2]
[353863016,1740100239513,-5565.48,0.00013698,2]
[353863017,1740100239522,-500.0,0.00013698,2]
[353863018,1740100239531,-500.0,0.00013698,2]
[353863019,1740100239541,-1472.7,0.00013698,2]
[353863020,1740100239551,-10366.79,0.00013698,2]
[353863021,1740100239561,-542.22037632,0.00013698,2]
[353863023,1740100239571,-2227.93,0.00013698,2]
[353863024,1740100239580,-500.0,0.00013698,2]
[353863025,1740100239589,-2771.6,0.00013698,2]
[353863026,1740100239599,-500.0,0.00013698,2]
[353863027,1740100239608,-1070.41,0.00013698,2]
[353863028,1740100239618,-500.0,0.00013698,2]
[353863029,1740100239628,-500.0,0.00013698,2]
[353863030,1740100239637,-898.45,0.00013698,2]
[353863031,1740100239647,-818.09,0.00013698,2]
[353863032,1740100239657,-500.0,0.00013698,2]
[353863033,1740100239667,-163.755283,0.00013699,2]
[353863034,1740100239676,-46247.4341032,0.00013699,2]
[353863035,1740100239686,-164.612171,0.00013699,2]
[353863036,1740100239696,-500.0,0.00013699,2]
[353863038,1740100239706,-195.63478375,0.00013699,2]
[353863040,1740100239715,-500.0,0.00013699,2]
[353863041,1740100239727,-500.0,0.00013699,2]
[353863042,1740100239737,-419.53492158,0.00013699,2]
[353863043,1740100239746,-500.0,0.00013699,2]
[353863044,1740100239756,-500.0,0.00013699,2]
[353863045,1740100239767,-500.0,0.00013699,2]
[353863046,1740100239777,-500.0,0.00013699,2]
[353863047,1740100239786,-500.0,0.00013699,2]
[353863048,1740100239795,-500.0,0.00013699,2]
[353863049,1740100239804,-280.2765321,0.00013699,2]
[353863050,1740100239815,-500.0,0.00013699,2]
[353863051,1740100239824,-500.0,0.00013699,2]
[353863052,1740100239834,-500.0,0.00013699,2]
[353863053,1740100239843,-500.0,0.00013699,2]
[353863054,1740100239852,-500.0,0.00013699,2]
[353863056,1740100239861,-500.0,0.00013699,2]
[353863057,1740100239871,-500.0,0.00013699,2]
[353863058,1740100239881,-500.0,0.00013699,2]
[353863059,1740100239890,-500.0,0.00013699,2]
[353863060,1740100239899,-500.0,0.00013699,2]
[353863061,1740100239909,-500.0,0.00013699,2]
[353863062,1740100239918,-500.0,0.00013699,2]
[353863063,1740100239927,-500.0,0.00013699,2]
[353863064,1740100239937,-500.0,0.00013699,2]
[353863065,1740100239946,-500.0,0.00013699,2]
[353863066,1740100239956,-500.0,0.00013699,2]
[353863067,1740100239966,-500.0,0.00013699,2]
[353863068,1740100239976,-500.0,0.00013699,2]
[353863069,1740100239985,-500.0,0.00013699,2]
[353863070,1740100239994,-500.0,0.00013699,2]
[353863071,1740100240003,-500.0,0.00013699,2]
[353863072,1740100240013,-500.0,0.00013699,2]
[353863074,1740100240022,-500.0,0.00013699,2]
[353863076,1740100240032,-500.0,0.00013699,2]
[353863078,1740100240041,-275.81429424,0.00013699,2]
[353863079,1740100240051,-500.0,0.00013699,2]
[353863081,1740100240061,-500.0,0.00013699,2]
[353863082,1740100240071,-500.0,0.00013699,2]
[353863083,1740100240080,-500.0,0.00013699,2]
[353863084,1740100240090,-500.0,0.00013699,2]
[353863085,1740100240099,-500.0,0.00013699,2]
[353863086,1740100240109,-500.0,0.00013699,2]
[353863087,1740100240119,-500.0,0.0001378,2]
[353863088,1740100240128,-500.0,0.0001378,2]
[353863089,1740100240138,-500.0,0.0001378,2]
[353863090,1740100240147,-500.0,0.0001378,2]
[353863091,1740100240156,-500.0,0.0001378,2]
[353863092,1740100240167,-500.0,0.0001378,2]
[353863093,1740100240176,-500.0,0.0001378,2]
[353863094,1740100240185,-500.0,0.0001378,2]
[353863095,1740100240195,-500.0,0.0001378,2]
[353863096,1740100240204,-500.0,0.0001378,2]
[353863097,1740100240213,-500.0,0.0001378,2]
[353863098,1740100240223,-500.0,0.0001378,2]
[353863099,1740100240232,-500.0,0.0001378,2]
[353863100,1740100240241,-500.0,0.0001378,2]
[353863101,1740100240250,-710.3,0.0001378,2]
[353863102,1740100240260,-500.0,0.0001378,2]
[353863103,1740100240269,-541.16,0.0001378,2]
[353863104,1740100240279,-921.47,0.0001378,2]
[353863105,1740100240288,-500.0,0.0001378,2]
[353863106,1740100240298,-500.0,0.0001378,2]
[353863107,1740100240307,-836.09,0.0001378,2]
[353863108,1740100240316,-500.0,0.0001378,2]
[353863109,1740100240325,-500.0,0.0001378,2]
[353863110,1740100240334,-500.0,0.0001378,2]
[353863111,1740100240344,-500.0,0.0001378,2]
[353863112,1740100240353,-500.0,0.0001378,2]
[353863113,1740100240362,-568.78,0.0001378,2]
[353863114,1740100240372,-500.0,0.0001378,2]
[353863115,1740100240381,-500.0,0.0001378,2]
[353863116,1740100240390,-881.54,0.0001378,2]
[353863117,1740100240399,-500.0,0.0001378,2]
[353863118,1740100240408,-500.0,0.0001378,2]